[Event "December 5 Early 2023"]
[Site "https://www.chess.com"]
[Date "2023.12.05"]
[Round "1"]
[White "Vovk, Orest"]
[Black "Biriukov, Ilja"]
[Result "1-0"]
[Board "229"]
[TimeControl "180+1"]
[WhiteFideId "14113490"]
[BlackFideId "4113373"]
[WhiteElo "2551"]
[BlackElo "2122"]
[WhiteTeam "UKR"]
[BlackTeam "RUS"]
[WhiteClock "0:00:15"]
[BlackClock "0:00:00"]

1. h4 {[%clk 0:02:59]}  d5 {[%clk 0:02:56]} 2. h5 {[%clk 0:02:59]}  c5 {[%clk 0:02:49]} 3. e4 {[%clk 0:02:58]}  d4 {[%clk 0:02:47]} 4. Bb5+ {[%clk 0:02:54]}  Nc6 {[%clk 0:02:45]} 5. Bxc6+ {[%clk 0:02:48]}  bxc6 {[%clk 0:02:46]} 6. d3 {[%clk 0:02:48]}  e5 {[%clk 0:02:39]} 7. Nd2 {[%clk 0:02:42]}  Be6 {[%clk 0:02:36]} 8. Ngf3 {[%clk 0:02:39]}  f6 {[%clk 0:02:32]} 9. b3 {[%clk 0:02:36]}  a5 {[%clk 0:02:27]} 10. a4 {[%clk 0:02:35]}  Bd6 {[%clk 0:02:20]} 11. Nc4 {[%clk 0:02:35]}  Bxc4 {[%clk 0:02:18]} 12. bxc4 {[%clk 0:02:35]}  Rb8 {[%clk 0:02:16]} 13. Nh4 {[%clk 0:02:28]}  Ne7 {[%clk 0:02:14]} 14. Qg4 {[%clk 0:02:26]}  Rg8 {[%clk 0:01:44]} 15. Qe6 {[%clk 0:02:15]}  Qd7 {[%clk 0:01:38]} 16. Qxd7+ {[%clk 0:02:15]}  Kxd7 {[%clk 0:01:38]} 17. Bd2 {[%clk 0:02:07]}  Bc7 {[%clk 0:01:32]} 18. Ke2 {[%clk 0:02:02]}  Rb2 {[%clk 0:01:25]} 19. Rhb1 {[%clk 0:01:56]}  Rgb8 {[%clk 0:01:23]} 20. Rxb2 {[%clk 0:01:47]}  Rxb2 {[%clk 0:01:22]} 21. Kd1 {[%clk 0:01:46]}  g5 {[%clk 0:01:09]} 22. Nf5 {[%clk 0:01:20]}  Nxf5 {[%clk 0:01:08]} 23. exf5 {[%clk 0:01:21]}  h6 {[%clk 0:01:06]} 24. g4 {[%clk 0:01:15]}  Kc8 {[%clk 0:00:59]} 25. Kc1 {[%clk 0:01:12]}  Rb7 {[%clk 0:00:55]} 26. c3 {[%clk 0:01:06]}  Rb3 {[%clk 0:00:48]} 27. Kc2 {[%clk 0:01:05]}  Rb7 {[%clk 0:00:47]} 28. Bc1 {[%clk 0:00:55]}  Bd6 {[%clk 0:00:41]} 29. Ba3 {[%clk 0:00:51]}  Kc7 {[%clk 0:00:37]} 30. Re1 {[%clk 0:00:44]}  Rb6 {[%clk 0:00:33]} 31. Bc1 {[%clk 0:00:43]}  Rb7 {[%clk 0:00:30]} 32. Bd2 {[%clk 0:00:43]}  Ra7 {[%clk 0:00:18]} 33. Rb1 {[%clk 0:00:34]}  Kc8 {[%clk 0:00:17]} 34. Bc1 {[%clk 0:00:26]}  Bc7 {[%clk 0:00:16]} 35. Ba3 {[%clk 0:00:25]}  Bd6 {[%clk 0:00:16]} 36. cxd4 {[%clk 0:00:24]}  exd4 {[%clk 0:00:15]} 37. Re1 {[%clk 0:00:24]}  Re7 {[%clk 0:00:13]} 38. Rxe7 {[%clk 0:00:19]}  Bxe7 {[%clk 0:00:13]} 39. Bc1 {[%clk 0:00:19]}  Kd7 {[%clk 0:00:12]} 40. Bd2 {[%clk 0:00:18]}  Bd8 {[%clk 0:00:12]} 41. f4 {[%clk 0:00:18]}  Kd6 {[%clk 0:00:10]} 42. Kd1 {[%clk 0:00:16]}  Ke7 {[%clk 0:00:07]} 43. Ke2 {[%clk 0:00:16]}  Kd6 {[%clk 0:00:07]} 44. Kf3 {[%clk 0:00:16]}  Ke7 {[%clk 0:00:07]} 45. Ke4 {[%clk 0:00:16]}  Kd6 {[%clk 0:00:06]} 46. fxg5 {[%clk 0:00:16]}  fxg5 {[%clk 0:00:07]} 47. Be1 {[%clk 0:00:17]}  Ke7 {[%clk 0:00:03]} 48. Bg3 {[%clk 0:00:16]}  Kf6 {[%clk 0:00:02]} 49. Bd6 {[%clk 0:00:16]}  Be7 {[%clk 0:00:01]} 50. Bxe7+ {[%clk 0:00:14]}  Kxe7 {[%clk 0:00:02]} 51. Ke5 {[%clk 0:00:15]}  Kf7 {[%clk 0:00:01]} 52. f6 {[%clk 0:00:15]}  Ke8 {[%clk 0:00:01]} 53. Ke6 {[%clk 0:00:15]}  Kf8 {[%clk 0:00:02]} 54. f7 {[%clk 0:00:15]}  Kg7 {[%clk 0:00:00]} 55. Ke7 {[%clk 0:00:15]} 1-0

[Event "December 5 Early 2023"]
[Site "https://www.chess.com"]
[Date "2023.12.05"]
[Round "1"]
[White "Vanek, Tomas"]
[Black "Tao, Sihan"]
[Result "1-0"]
[Board "230"]
[TimeControl "180+1"]
[WhiteFideId "313459"]
[BlackFideId "30982677"]
[WhiteElo "2122"]
[BlackElo "2551"]
[WhiteTeam "CZE"]
[BlackTeam "USA"]
[WhiteClock "0:00:17"]
[BlackClock "0:00:15"]

1. e4 {[%clk 0:02:59]}  c5 {[%clk 0:02:59]} 2. Nf3 {[%clk 0:02:58]}  d6 {[%clk 0:02:59]} 3. d4 {[%clk 0:02:58]}  cxd4 {[%clk 0:02:59]} 4. Nxd4 {[%clk 0:02:58]}  Nf6 {[%clk 0:03:00]} 5. Nc3 {[%clk 0:02:58]}  Nc6 {[%clk 0:03:00]} 6. Bg5 {[%clk 0:02:52]}  e6 {[%clk 0:03:00]} 7. Nb3 {[%clk 0:02:42]}  a6 {[%clk 0:02:52]} 8. Be2 {[%clk 0:02:42]}  h6 {[%clk 0:02:51]} 9. Bh4 {[%clk 0:02:41]}  Be7 {[%clk 0:02:50]} 10. O-O {[%clk 0:02:40]}  O-O {[%clk 0:02:50]} 11. Qe1 {[%clk 0:02:37]}  b5 {[%clk 0:02:33]} 12. a3 {[%clk 0:02:34]}  Bb7 {[%clk 0:02:33]} 13. Rd1 {[%clk 0:02:33]}  Nd7 {[%clk 0:02:30]} 14. Bg3 {[%clk 0:02:32]}  Nb6 {[%clk 0:02:18]} 15. f4 {[%clk 0:02:18]}  Qc7 {[%clk 0:02:06]} 16. f5 {[%clk 0:02:15]}  Rad8 {[%clk 0:01:49]} 17. Bg4 {[%clk 0:01:49]}  Bc8 {[%clk 0:01:36]} 18. f6 {[%clk 0:01:33]}  Bxf6 {[%clk 0:01:33]} 19. Rxf6 {[%clk 0:01:33]}  gxf6 {[%clk 0:01:33]} 20. Qe3 {[%clk 0:01:32]}  Kg7 {[%clk 0:01:22]} 21. Rf1 {[%clk 0:01:28]}  e5 {[%clk 0:01:07]} 22. Bxc8 {[%clk 0:00:51]}  Rxc8 {[%clk 0:01:08]} 23. Bh4 {[%clk 0:00:50]}  Ne7 {[%clk 0:00:40]} 24. Bxf6+ {[%clk 0:00:49]}  Kh7 {[%clk 0:00:40]} 25. Rf3 {[%clk 0:00:38]}  Nc4 {[%clk 0:00:37]} 26. Qc1 {[%clk 0:00:38]}  Rg8 {[%clk 0:00:35]} 27. Rh3 {[%clk 0:00:37]}  Rg6 {[%clk 0:00:35]} 28. Bg5 {[%clk 0:00:28]}  Rcg8 {[%clk 0:00:28]} 29. Bxh6 {[%clk 0:00:23]}  Rxg2+ {[%clk 0:00:27]} 30. Kh1 {[%clk 0:00:23]}  Rg1+ {[%clk 0:00:21]} 31. Qxg1 {[%clk 0:00:23]}  Rxg1+ {[%clk 0:00:22]} 32. Kxg1 {[%clk 0:00:24]}  Ng6 {[%clk 0:00:23]} 33. Nd5 {[%clk 0:00:18]}  Qb8 {[%clk 0:00:19]} 34. Nf6+ {[%clk 0:00:17]}  Kh8 {[%clk 0:00:15]} 35. Bf8+ {[%clk 0:00:17]} 1-0

[Event "December 5 Early 2023"]
[Site "https://www.chess.com"]
[Date "2023.12.05"]
[Round "1"]
[White "Manukyan, Sargis A."]
[Black "Hartikainen, Jarmo"]
[Result "1-0"]
[Board "231"]
[TimeControl "180+1"]
[WhiteFideId "13303970"]
[BlackFideId "503134"]
[WhiteElo "2551"]
[BlackElo "2117"]
[WhiteTeam "ARM"]
[BlackTeam "FIN"]
[WhiteClock "0:00:42"]
[BlackClock "0:00:04"]

1. d4 {[%clk 0:02:42]}  d5 {[%clk 0:02:59]} 2. c4 {[%clk 0:02:42]}  c5 {[%clk 0:02:59]} 3. cxd5 {[%clk 0:02:40]}  Qxd5 {[%clk 0:02:58]} 4. Nf3 {[%clk 0:02:40]}  cxd4 {[%clk 0:02:58]} 5. Nc3 {[%clk 0:02:40]}  Qd8 {[%clk 0:02:57]} 6. Qxd4 {[%clk 0:02:40]}  Qxd4 {[%clk 0:02:56]} 7. Nxd4 {[%clk 0:02:41]}  a6 {[%clk 0:02:57]} 8. g3 {[%clk 0:02:40]}  Nf6 {[%clk 0:02:55]} 9. Bg2 {[%clk 0:02:41]}  e5 {[%clk 0:02:55]} 10. Nb3 {[%clk 0:02:40]}  Bb4 {[%clk 0:02:49]} 11. O-O {[%clk 0:02:38]}  O-O {[%clk 0:02:46]} 12. Na4 {[%clk 0:02:33]}  Nbd7 {[%clk 0:02:37]} 13. a3 {[%clk 0:02:21]}  Be7 {[%clk 0:02:30]} 14. Be3 {[%clk 0:02:12]}  Rb8 {[%clk 0:02:27]} 15. Ba7 {[%clk 0:02:01]}  Ra8 {[%clk 0:02:25]} 16. Be3 {[%clk 0:02:01]}  Rb8 {[%clk 0:02:23]} 17. Nb6 {[%clk 0:02:00]}  Nxb6 {[%clk 0:02:22]} 18. Bxb6 {[%clk 0:02:01]}  Bd7 {[%clk 0:01:34]} 19. Na5 {[%clk 0:01:59]}  Bc6 {[%clk 0:01:34]} 20. Bc7 {[%clk 0:01:46]}  Rbc8 {[%clk 0:01:27]} 21. Bxe5 {[%clk 0:01:36]}  Bxg2 {[%clk 0:01:18]} 22. Kxg2 {[%clk 0:01:37]}  b6 {[%clk 0:01:12]} 23. Nb3 {[%clk 0:01:35]}  Nd7 {[%clk 0:01:03]} 24. Bd4 {[%clk 0:01:34]}  Nc5 {[%clk 0:01:01]} 25. Nxc5 {[%clk 0:01:34]}  Bxc5 {[%clk 0:00:59]} 26. Bxc5 {[%clk 0:01:34]}  Rxc5 {[%clk 0:01:00]} 27. Rac1 {[%clk 0:01:35]}  Rfc8 {[%clk 0:00:59]} 28. Rxc5 {[%clk 0:01:35]}  Rxc5 {[%clk 0:00:59]} 29. Rd1 {[%clk 0:01:36]}  Kf8 {[%clk 0:00:57]} 30. Rd6 {[%clk 0:01:36]}  Rb5 {[%clk 0:00:53]} 31. b4 {[%clk 0:01:36]}  a5 {[%clk 0:00:50]} 32. bxa5 {[%clk 0:01:35]}  Rxa5 {[%clk 0:00:46]} 33. Rxb6 {[%clk 0:01:35]}  Rxa3 {[%clk 0:00:46]} 34. Rb7 {[%clk 0:01:35]}  g6 {[%clk 0:00:43]} 35. e4 {[%clk 0:01:33]}  Ra5 {[%clk 0:00:34]} 36. f4 {[%clk 0:01:32]}  Kg7 {[%clk 0:00:32]} 37. e5 {[%clk 0:01:32]}  Ra6 {[%clk 0:00:29]} 38. Kh3 {[%clk 0:01:27]}  h6 {[%clk 0:00:26]} 39. Re7 {[%clk 0:01:17]}  Rb6 {[%clk 0:00:25]} 40. Kg4 {[%clk 0:01:12]}  Ra6 {[%clk 0:00:25]} 41. h4 {[%clk 0:01:08]}  Rb6 {[%clk 0:00:24]} 42. h5 {[%clk 0:01:07]}  gxh5+ {[%clk 0:00:20]} 43. Kxh5 {[%clk 0:01:07]}  Rg6 {[%clk 0:00:19]} 44. g4 {[%clk 0:01:02]}  Kf8 {[%clk 0:00:17]} 45. Ra7 {[%clk 0:01:00]}  Kg7 {[%clk 0:00:17]} 46. f5 {[%clk 0:00:59]}  Rg5+ {[%clk 0:00:16]} 47. Kh4 {[%clk 0:00:59]}  Kg8 {[%clk 0:00:14]} 48. Ra8+ {[%clk 0:00:50]}  Kg7 {[%clk 0:00:13]} 49. Re8 {[%clk 0:00:48]}  Kh7 {[%clk 0:00:09]} 50. Re7 {[%clk 0:00:42]}  Rg7 {[%clk 0:00:04]} 51. f6 {[%clk 0:00:42]} 1-0

[Event "December 5 Early 2023"]
[Site "https://www.chess.com"]
[Date "2023.12.05"]
[Round "1"]
[White "Mangialardo, Tiago Carvalho"]
[Black "Erzhanov, Arman"]
[Result "0-1"]
[Board "232"]
[TimeControl "180+1"]
[WhiteFideId "2130718"]
[BlackFideId "4138821"]
[WhiteElo "2100"]
[BlackElo "2550"]
[WhiteTeam "BRA"]
[BlackTeam "KAZ"]
[WhiteClock "0:00:00"]
[BlackClock "0:00:09"]

1. e4 {[%clk 0:02:35]}  d6 {[%clk 0:02:59]} 2. d4 {[%clk 0:02:34]}  Nf6 {[%clk 0:02:59]} 3. Nd2 {[%clk 0:02:33]}  g6 {[%clk 0:02:57]} 4. f4 {[%clk 0:02:20]}  Bg7 {[%clk 0:02:57]} 5. Ngf3 {[%clk 0:02:13]}  O-O {[%clk 0:02:56]} 6. e5 {[%clk 0:02:12]}  Nd5 {[%clk 0:02:51]} 7. Nb3 {[%clk 0:02:11]}  Bg4 {[%clk 0:02:46]} 8. Be2 {[%clk 0:02:10]}  Nd7 {[%clk 0:02:37]} 9. O-O {[%clk 0:02:08]}  N5b6 {[%clk 0:02:22]} 10. Kh1 {[%clk 0:01:55]}  Rc8 {[%clk 0:02:21]} 11. h3 {[%clk 0:01:51]}  Be6 {[%clk 0:02:20]} 12. Ng5 {[%clk 0:01:44]}  Bd5 {[%clk 0:02:20]} 13. Na5 {[%clk 0:01:39]}  h6 {[%clk 0:02:16]} 14. Nf3 {[%clk 0:01:24]}  Rb8 {[%clk 0:02:04]} 15. c4 {[%clk 0:01:23]}  Bxf3 {[%clk 0:02:03]} 16. Bxf3 {[%clk 0:01:24]}  c6 {[%clk 0:02:02]} 17. f5 {[%clk 0:01:08]}  gxf5 {[%clk 0:01:59]} 18. Qe1 {[%clk 0:00:50]}  dxe5 {[%clk 0:01:57]} 19. dxe5 {[%clk 0:00:45]}  Nxe5 {[%clk 0:01:55]} 20. Qg3 {[%clk 0:00:32]}  Ng6 {[%clk 0:01:36]} 21. Bh5 {[%clk 0:00:25]}  Qd6 {[%clk 0:01:23]} 22. Qxd6 {[%clk 0:00:14]}  exd6 {[%clk 0:01:24]} 23. Rxf5 {[%clk 0:00:14]}  Nd7 {[%clk 0:01:22]} 24. Rb1 {[%clk 0:00:11]}  Nde5 {[%clk 0:01:14]} 25. Nb3 {[%clk 0:00:05]}  Nxc4 {[%clk 0:01:14]} 26. Nd2 {[%clk 0:00:04]}  Ne3 {[%clk 0:00:59]} 27. Rf3 {[%clk 0:00:01]}  Rbe8 {[%clk 0:00:54]} 28. Nb3 {[%clk 0:00:01]}  Nc4 {[%clk 0:00:45]} 29. Bd2 {[%clk 0:00:01]}  Nxd2 {[%clk 0:00:44]} 30. Nxd2 {[%clk 0:00:01]}  d5 {[%clk 0:00:39]} 31. Rbf1 {[%clk 0:00:01]}  Re7 {[%clk 0:00:34]} 32. Nb3 {[%clk 0:00:02]}  b6 {[%clk 0:00:31]} 33. Nc1 {[%clk 0:00:01]}  Ne5 {[%clk 0:00:24]} 34. Rf5 {[%clk 0:00:01]}  Kh7 {[%clk 0:00:19]} 35. Ne2 {[%clk 0:00:01]}  Nd3 {[%clk 0:00:17]} 36. Ng3 {[%clk 0:00:01]}  Nxb2 {[%clk 0:00:17]} 37. R5f2 {[%clk 0:00:01]}  Nd3 {[%clk 0:00:16]} 38. Rf3 {[%clk 0:00:02]}  Ne5 {[%clk 0:00:16]} 39. Rf4 {[%clk 0:00:02]}  Ng6 {[%clk 0:00:16]} 40. Rf5 {[%clk 0:00:02]}  Be5 {[%clk 0:00:15]} 41. Ne2 {[%clk 0:00:02]}  Kg7 {[%clk 0:00:15]} 42. Ng1 {[%clk 0:00:03]}  Bd6 {[%clk 0:00:15]} 43. Nf3 {[%clk 0:00:03]}  Re4 {[%clk 0:00:14]} 44. Nh2 {[%clk 0:00:03]}  Rf4 {[%clk 0:00:13]} 45. R5xf4 {[%clk 0:00:02]}  Nxf4 {[%clk 0:00:14]} 46. Bf3 {[%clk 0:00:02]}  Nd3 {[%clk 0:00:12]} 47. Ng4 {[%clk 0:00:02]}  Ne5 {[%clk 0:00:13]} 48. Ne3 {[%clk 0:00:02]}  f5 {[%clk 0:00:10]} 49. Bh5 {[%clk 0:00:02]}  f4 {[%clk 0:00:09]} 50. Nd1 {[%clk 0:00:01]}  Nc4 {[%clk 0:00:08]} 51. Nc3 {[%clk 0:00:02]}  Ne3 {[%clk 0:00:08]} 52. Rf3 {[%clk 0:00:02]}  Nf5 {[%clk 0:00:08]} 53. Ne2 {[%clk 0:00:02]}  Ng3+ {[%clk 0:00:08]} 54. Nxg3 {[%clk 0:00:00]}  fxg3 {[%clk 0:00:09]} 0-1

[Event "December 5 Early 2023"]
[Site "https://www.chess.com"]
[Date "2023.12.05"]
[Round "1"]
[White "Tologon tegin, Semetei"]
[Black "Mende, Andreas"]
[Result "1-0"]
[Board "233"]
[TimeControl "180+1"]
[WhiteFideId "13800574"]
[BlackFideId "4631102"]
[WhiteElo "2548"]
[BlackElo "2098"]
[WhiteTeam "KGZ"]
[BlackTeam "GER"]
[WhiteClock "0:00:20"]
[BlackClock "0:00:13"]

1. Nf3 {[%clk 0:02:54]}  Nf6 {[%clk 0:02:57]} 2. e3 {[%clk 0:02:54]}  g6 {[%clk 0:02:57]} 3. d4 {[%clk 0:02:55]}  d5 {[%clk 0:02:57]} 4. c4 {[%clk 0:02:55]}  Bg7 {[%clk 0:02:48]} 5. Nc3 {[%clk 0:02:54]}  O-O {[%clk 0:02:47]} 6. Qb3 {[%clk 0:02:54]}  dxc4 {[%clk 0:02:43]} 7. Bxc4 {[%clk 0:02:53]}  c5 {[%clk 0:02:43]} 8. O-O {[%clk 0:02:50]}  Nc6 {[%clk 0:02:43]} 9. dxc5 {[%clk 0:02:46]}  Na5 {[%clk 0:02:40]} 10. Qb4 {[%clk 0:02:46]}  Nxc4 {[%clk 0:02:39]} 11. Qxc4 {[%clk 0:02:47]}  Be6 {[%clk 0:02:38]} 12. Qb4 {[%clk 0:02:47]}  Qc7 {[%clk 0:02:31]} 13. Nd4 {[%clk 0:02:46]}  Bd7 {[%clk 0:02:20]} 14. Qa3 {[%clk 0:02:22]}  Rfc8 {[%clk 0:02:13]} 15. b4 {[%clk 0:02:20]}  a5 {[%clk 0:02:13]} 16. Bd2 {[%clk 0:01:46]}  axb4 {[%clk 0:02:12]} 17. Qxb4 {[%clk 0:01:47]}  Rab8 {[%clk 0:01:52]} 18. Nb3 {[%clk 0:01:24]}  Be6 {[%clk 0:01:47]} 19. Nb5 {[%clk 0:01:16]}  Qd8 {[%clk 0:01:22]} 20. Rac1 {[%clk 0:01:07]}  Nd5 {[%clk 0:01:17]} 21. Qh4 {[%clk 0:01:03]}  Bf6 {[%clk 0:01:11]} 22. Qg3 {[%clk 0:01:02]}  b6 {[%clk 0:00:55]} 23. c6 {[%clk 0:00:55]}  Nc7 {[%clk 0:00:50]} 24. Nxc7 {[%clk 0:00:38]}  Rxc7 {[%clk 0:00:49]} 25. Rfd1 {[%clk 0:00:27]}  Qc8 {[%clk 0:00:35]} 26. Nd4 {[%clk 0:00:27]}  Bxa2 {[%clk 0:00:32]} 27. Nb5 {[%clk 0:00:24]}  Bb3 {[%clk 0:00:27]} 28. Qxc7 {[%clk 0:00:19]}  Qxc7 {[%clk 0:00:24]} 29. Nxc7 {[%clk 0:00:19]}  Bxd1 {[%clk 0:00:25]} 30. Rxd1 {[%clk 0:00:19]}  Rc8 {[%clk 0:00:25]} 31. Nd5 {[%clk 0:00:19]}  Rxc6 {[%clk 0:00:22]} 32. Nxf6+ {[%clk 0:00:19]}  exf6 {[%clk 0:00:21]} 33. Rb1 {[%clk 0:00:19]}  Kg7 {[%clk 0:00:20]} 34. Kf1 {[%clk 0:00:19]}  f5 {[%clk 0:00:19]} 35. Ke2 {[%clk 0:00:20]}  Kf6 {[%clk 0:00:20]} 36. Kd3 {[%clk 0:00:20]}  Ke6 {[%clk 0:00:20]} 37. Bc3 {[%clk 0:00:20]}  Kd6 {[%clk 0:00:19]} 38. Bd4 {[%clk 0:00:20]}  Kc7 {[%clk 0:00:17]} 39. Rb2 {[%clk 0:00:20]}  Rd6 {[%clk 0:00:18]} 40. Kc4 {[%clk 0:00:19]}  h5 {[%clk 0:00:16]} 41. Be5 {[%clk 0:00:19]}  Kc6 {[%clk 0:00:14]} 42. Bxd6 {[%clk 0:00:20]}  Kxd6 {[%clk 0:00:13]} 43. Rxb6+ {[%clk 0:00:20]} 1-0

[Event "December 5 Early 2023"]
[Site "https://www.chess.com"]
[Date "2023.12.05"]
[Round "1"]
[White "Bilan, Danila"]
[Black "BestestBP"]
[Result "1-0"]
[Board "237"]
[TimeControl "180+1"]
[WhiteFideId "24161918"]
[WhiteElo "2545"]
[BlackElo "2061"]
[WhiteTeam "RUS"]
[WhiteClock "0:00:17"]
[BlackClock "0:00:00"]

1. d4 {[%clk 0:02:58]}  Nf6 {[%clk 0:02:59]} 2. Nf3 {[%clk 0:02:59]}  e6 {[%clk 0:02:59]} 3. c4 {[%clk 0:02:58]}  Bb4+ {[%clk 0:02:59]} 4. Bd2 {[%clk 0:02:59]}  a5 {[%clk 0:02:58]} 5. g3 {[%clk 0:02:58]}  O-O {[%clk 0:02:56]} 6. Bg2 {[%clk 0:02:59]}  d5 {[%clk 0:02:56]} 7. O-O {[%clk 0:02:59]}  dxc4 {[%clk 0:02:54]} 8. Qc2 {[%clk 0:02:54]}  c5 {[%clk 0:02:54]} 9. dxc5 {[%clk 0:02:46]}  Bxc5 {[%clk 0:02:48]} 10. Qxc4 {[%clk 0:02:27]}  Qe7 {[%clk 0:02:48]} 11. Nc3 {[%clk 0:02:25]}  b6 {[%clk 0:02:43]} 12. Bg5 {[%clk 0:02:15]}  h6 {[%clk 0:02:33]} 13. Bxf6 {[%clk 0:02:13]}  Qxf6 {[%clk 0:02:28]} 14. Ne4 {[%clk 0:02:01]}  Qxb2 {[%clk 0:01:48]} 15. Nxc5 {[%clk 0:01:39]}  bxc5 {[%clk 0:01:44]} 16. Rfb1 {[%clk 0:01:31]}  Qf6 {[%clk 0:01:35]} 17. Qxc5 {[%clk 0:01:19]}  Nd7 {[%clk 0:01:02]} 18. Qc7 {[%clk 0:01:07]}  Rb8 {[%clk 0:00:46]} 19. a4 {[%clk 0:01:00]}  Rb2 {[%clk 0:00:29]} 20. e4 {[%clk 0:00:41]}  Re2 {[%clk 0:00:15]} 21. Re1 {[%clk 0:00:31]}  g5 {[%clk 0:00:03]} 22. Rad1 {[%clk 0:00:18]}  Qb2 {[%clk 0:00:01]} 23. Rxe2 {[%clk 0:00:17]}  Qxe2 {[%clk 0:00:00]} 24. Rxd7 {[%clk 0:00:17]} 1-0

[Event "December 5 Early 2023"]
[Site "https://www.chess.com"]
[Date "2023.12.05"]
[Round "1"]
[White "Sailer, Mike"]
[Black "Kashefi, Amir Hosein"]
[Result "0-1"]
[Board "240"]
[TimeControl "180+1"]
[WhiteFideId "2012901"]
[BlackFideId "12557935"]
[WhiteElo "2045"]
[BlackElo "2543"]
[WhiteTeam "USA"]
[BlackTeam "IRI"]
[WhiteClock "0:00:27"]
[BlackClock "0:01:11"]

1. d4 {[%clk 0:02:58]}  c5 {[%clk 0:02:53]} 2. e3 {[%clk 0:02:51]}  Nf6 {[%clk 0:02:51]} 3. Nf3 {[%clk 0:02:49]}  e6 {[%clk 0:02:48]} 4. Bd3 {[%clk 0:02:43]}  Qc7 {[%clk 0:02:46]} 5. O-O {[%clk 0:02:37]}  b6 {[%clk 0:02:46]} 6. b3 {[%clk 0:02:29]}  Bb7 {[%clk 0:02:45]} 7. Bb2 {[%clk 0:02:29]}  Be7 {[%clk 0:02:45]} 8. Nbd2 {[%clk 0:02:25]}  d6 {[%clk 0:02:43]} 9. Re1 {[%clk 0:02:24]}  Nbd7 {[%clk 0:02:40]} 10. a4 {[%clk 0:02:24]}  O-O {[%clk 0:02:39]} 11. a5 {[%clk 0:02:22]}  Rfd8 {[%clk 0:02:25]} 12. Qe2 {[%clk 0:02:12]}  Nf8 {[%clk 0:02:22]} 13. dxc5 {[%clk 0:01:44]}  bxc5 {[%clk 0:02:18]} 14. a6 {[%clk 0:01:25]}  Bc6 {[%clk 0:02:17]} 15. Nc4 {[%clk 0:01:26]}  Ng6 {[%clk 0:02:15]} 16. Na5 {[%clk 0:01:26]}  Be4 {[%clk 0:01:50]} 17. Nd2 {[%clk 0:01:08]}  Bxd3 {[%clk 0:01:45]} 18. Qxd3 {[%clk 0:01:08]}  Rab8 {[%clk 0:01:42]} 19. Nb7 {[%clk 0:01:04]}  Rdc8 {[%clk 0:01:40]} 20. Nc4 {[%clk 0:00:53]}  d5 {[%clk 0:01:40]} 21. Nca5 {[%clk 0:00:51]}  Ng4 {[%clk 0:01:29]} 22. g3 {[%clk 0:00:47]}  Bf6 {[%clk 0:01:26]} 23. Bxf6 {[%clk 0:00:46]}  Nxf6 {[%clk 0:01:27]} 24. h4 {[%clk 0:00:40]}  h5 {[%clk 0:01:20]} 25. Rab1 {[%clk 0:00:33]}  Ng4 {[%clk 0:01:20]} 26. Kg2 {[%clk 0:00:32]}  Nxh4+ {[%clk 0:01:13]} 27. gxh4 {[%clk 0:00:32]}  Qh2+ {[%clk 0:01:12]} 28. Kf3 {[%clk 0:00:27]}  Qxf2# {[%clk 0:01:11]} 0-1

[Event "December 5 Early 2023"]
[Site "https://www.chess.com"]
[Date "2023.12.05"]
[Round "1"]
[White "Saravana, Krishnan P."]
[Black "Nikulina, Alena"]
[Result "1-0"]
[Board "241"]
[TimeControl "180+1"]
[WhiteFideId "5018382"]
[BlackFideId "4172051"]
[WhiteElo "2543"]
[BlackElo "2030"]
[WhiteTeam "IND"]
[BlackTeam "RUS"]
[WhiteClock "0:01:08"]
[BlackClock "0:00:10"]

1. e4 {[%clk 0:02:58]}  c5 {[%clk 0:02:59]} 2. Nf3 {[%clk 0:02:57]}  e6 {[%clk 0:02:59]} 3. d4 {[%clk 0:02:54]}  cxd4 {[%clk 0:02:59]} 4. Nxd4 {[%clk 0:02:54]}  Nf6 {[%clk 0:02:59]} 5. Nc3 {[%clk 0:02:52]}  Nc6 {[%clk 0:02:59]} 6. Nxc6 {[%clk 0:02:43]}  bxc6 {[%clk 0:02:59]} 7. Bd3 {[%clk 0:02:43]}  d5 {[%clk 0:02:56]} 8. O-O {[%clk 0:02:43]}  Be7 {[%clk 0:02:54]} 9. Qe2 {[%clk 0:02:42]}  d4 {[%clk 0:02:50]} 10. Na4 {[%clk 0:02:39]}  e5 {[%clk 0:02:47]} 11. f4 {[%clk 0:02:36]}  exf4 {[%clk 0:02:45]} 12. Bxf4 {[%clk 0:02:29]}  O-O {[%clk 0:02:45]} 13. Rad1 {[%clk 0:02:26]}  Bg4 {[%clk 0:02:40]} 14. Qf2 {[%clk 0:02:25]}  Bxd1 {[%clk 0:02:39]} 15. Rxd1 {[%clk 0:02:26]}  Ng4 {[%clk 0:02:33]} 16. Qg3 {[%clk 0:02:21]}  Nf6 {[%clk 0:02:13]} 17. Bh6 {[%clk 0:02:16]}  Nh5 {[%clk 0:02:04]} 18. Qg4 {[%clk 0:02:16]}  Kh8 {[%clk 0:01:54]} 19. Qxh5 {[%clk 0:02:14]}  gxh6 {[%clk 0:01:54]} 20. Qe5+ {[%clk 0:01:47]}  Bf6 {[%clk 0:01:52]} 21. Qf5 {[%clk 0:01:47]}  Rg8 {[%clk 0:00:38]} 22. e5 {[%clk 0:01:45]}  Rg6 {[%clk 0:00:36]} 23. exf6 {[%clk 0:01:45]}  Qxf6 {[%clk 0:00:36]} 24. Qxf6+ {[%clk 0:01:27]}  Rxf6 {[%clk 0:00:36]} 25. Nc5 {[%clk 0:01:27]}  Rd8 {[%clk 0:00:29]} 26. Ne4 {[%clk 0:01:24]}  Rf4 {[%clk 0:00:27]} 27. Rd2 {[%clk 0:01:19]}  f5 {[%clk 0:00:23]} 28. Ng3 {[%clk 0:01:17]}  Rd5 {[%clk 0:00:20]} 29. Re2 {[%clk 0:01:11]}  Rg4 {[%clk 0:00:16]} 30. Nxf5 {[%clk 0:01:10]}  Rg8 {[%clk 0:00:10]} 31. Ne7 {[%clk 0:01:08]} 1-0